fUSD/lending_fUSD_20241030
["ID","MTS","AMOUNT","RATE_DAILY","PERIOD"]
[341042071,1730301056300,-500.0,0.00033972,5]
[341042072,1730301056310,-3900.02,0.00033972,5]
[341042073,1730301056319,-500.0,0.00033972,5]
[341042074,1730301056329,-500.0,0.00033972,5]
[341042075,1730301056338,-500.0,0.00033972,5]
[341042076,1730301056348,-3956.8,0.00033972,5]
[341042077,1730301056357,-1033.49,0.00033972,5]
[341042078,1730301056367,-2561.17,0.00033972,5]
[341042079,1730301056377,-5020.91,0.00033972,5]
[341042080,1730301056386,-1504.38,0.00033972,5]
[341042081,1730301056396,-500.0,0.00033972,5]
[341042082,1730301056406,-1011.0,0.00034,2]
[341042083,1730301056415,-169.0,0.00034,120]
[341042084,1730301056425,-178.58,0.00034017,2]
[341042085,1730301056434,-222.44218657,0.000342,7]
[341042086,1730301056446,-150.0,0.000342,7]
[341042087,1730301056456,-546.12,0.00034236,3]
[341042088,1730301056465,-637.86754362,0.00034245,2]
[341042089,1730301056476,-500.0,0.00034246,5]
[341042090,1730301056485,-500.0,0.00034246,5]
[341042091,1730301056495,-500.0,0.00034246,5]
[341042092,1730301056505,-500.0,0.00034246,5]
[341042093,1730301056515,-500.0,0.00034246,5]
[341042094,1730301056524,-1139.26,0.00034246,2]
[341042095,1730301056534,-600.73,0.00034246,5]
[341042096,1730301056544,-500.0,0.00034246,5]
[341042097,1730301056553,-879.74,0.00034246,5]
[341042098,1730301056563,-834.42,0.00034246,5]
[341042099,1730301056573,-500.0,0.00034246,5]
[341042100,1730301056583,-500.0,0.00034246,5]
[341042101,1730301056592,-500.0,0.00034246,5]
[341042102,1730301056602,-500.0,0.00034246,5]
[341042103,1730301056611,-500.0,0.00034246,5]
[341042104,1730301056621,-500.0,0.00034246,5]
[341042105,1730301056631,-500.0,0.00034246,5]
[341042106,1730301056640,-500.0,0.00034246,5]
[341042107,1730301056649,-500.0,0.00034246,5]
[341042108,1730301056659,-541.52,0.00034246,5]
[341042109,1730301056668,-646.69,0.00034246,5]
[341042110,1730301056678,-500.0,0.00034246,5]
[341042111,1730301056689,-599.58,0.00034246,5]
[341042112,1730301056698,-739.01,0.00034246,5]
[341042113,1730301056707,-644.7,0.00034246,5]
[341042114,1730301056717,-500.0,0.00034246,5]
[341042115,1730301056726,-610.76,0.00034246,5]
[341042116,1730301056736,-500.0,0.00034246,5]
[341042117,1730301056745,-500.0,0.00034246,5]
[341042118,1730301056755,-500.0,0.00034246,5]
[341042119,1730301056764,-500.0,0.00034246,5]
[341042120,1730301056774,-500.0,0.00034246,5]
[341042121,1730301056783,-500.0,0.00034246,5]
[341042122,1730301056792,-1213.36,0.00034246,5]
[341042123,1730301056803,-500.0,0.00034246,5]
[341042124,1730301056812,-500.0,0.00034246,5]
[341042125,1730301056822,-500.0,0.00034246,5]
[341042126,1730301056832,-741.71,0.00034246,5]
[341042127,1730301056841,-500.0,0.00034246,5]
[341042128,1730301056851,-500.0,0.00034246,5]
[341042129,1730301056860,-500.0,0.00034246,5]
[341042130,1730301056869,-500.0,0.00034246,5]
[341042131,1730301056879,-791.34,0.00034246,5]
[341042132,1730301056888,-2165.19,0.00034246,5]
[341042133,1730301056897,-2507.94,0.00034246,5]
[341042134,1730301056907,-500.0,0.00034246,5]
[341042135,1730301056916,-500.0,0.00034246,5]
[341042136,1730301056926,-556.27,0.00034246,5]
[341042137,1730301056936,-500.0,0.00034246,5]
[341042138,1730301056956,-850.73,0.00034246,5]
[341042139,1730301056965,-500.0,0.00034246,5]
[341042140,1730301056974,-500.0,0.00034246,5]
[341042141,1730301056984,-500.0,0.00034246,5]
[341042142,1730301056995,-500.0,0.00034246,5]
[341042143,1730301057004,-594.99,0.00034246,5]
[341042144,1730301057014,-500.0,0.00034246,5]
[341042145,1730301057023,-500.0,0.00034246,5]
[341042146,1730301057033,-500.0,0.00034246,5]
[341042147,1730301057043,-638.53,0.00034246,5]
[341042148,1730301057052,-765.24,0.00034246,5]
[341042149,1730301057203,-500.0,0.00034246,5]
[341042150,1730301057217,-500.0,0.00034246,5]
[341042151,1730301057227,-500.0,0.00034246,5]
[341042152,1730301057236,-500.0,0.00034246,5]
[341042153,1730301057247,-726.09,0.00034246,5]
[341042154,1730301057256,-500.0,0.00034246,5]
[341042155,1730301057265,-872.19,0.00034246,5]
[341042156,1730301057275,-1312.35,0.00034246,5]
[341042157,1730301057287,-500.0,0.00034246,5]
[341042158,1730301057299,-500.0,0.00034246,5]
[341042159,1730301057308,-500.0,0.00034246,5]
[341042160,1730301057318,-1481.81,0.00034246,5]
[341042161,1730301057327,-500.0,0.00034246,5]
[341042162,1730301057337,-500.0,0.00034246,5]
[341042163,1730301057346,-500.0,0.00034246,5]
[341042164,1730301057356,-662.44,0.00034246,5]
[341042165,1730301057366,-500.0,0.00034246,5]
[341042166,1730301057376,-500.0,0.00034246,5]
[341042167,1730301057385,-500.0,0.00034246,5]
[341042168,1730301057395,-646.17,0.00034246,5]
[341042169,1730301057404,-500.0,0.00034246,5]
[341042170,1730301057413,-500.0,0.00034246,5]
[341042171,1730301057423,-679.04,0.00034246,5]
[341042172,1730301057433,-500.0,0.00034246,5]
[341042173,1730301057445,-925.77,0.00034246,5]
[341042174,1730301057454,-500.0,0.00034246,5]
[341042175,1730301057464,-500.0,0.00034246,5]
[341042176,1730301057473,-854.36,0.00034246,5]
[341042177,1730301057483,-500.0,0.00034246,5]
[341042178,1730301057492,-524.7,0.00034246,5]
[341042179,1730301057501,-1022.86,0.00034246,5]
[341042180,1730301057511,-725.7,0.00034246,5]
[341042181,1730301057520,-500.0,0.00034246,5]
[341042182,1730301057530,-500.0,0.00034246,5]
[341042183,1730301057539,-500.0,0.00034246,5]
[341042184,1730301057549,-1018.14,0.00034246,5]
[341042185,1730301057558,-7103.18,0.00034246,120]
[341042186,1730301057568,-823.86,0.00034246,5]
[341042187,1730301057578,-500.0,0.00034246,5]
[341042188,1730301057588,-1098.19,0.00034246,5]
[341042189,1730301057597,-574.74,0.00034246,5]
[341042190,1730301057606,-500.0,0.00034246,5]
[341042191,1730301057616,-500.0,0.00034246,5]
[341042192,1730301057626,-150.8794752,0.00034246,5]
[341042193,1730301057636,-500.0,0.00034246,5]
[341042194,1730301057646,-500.0,0.00034246,5]
[341042195,1730301057656,-500.0,0.00034246,5]
[341042196,1730301057666,-500.0,0.00034246,5]
[341042197,1730301057675,-546.7,0.00034246,5]
[341042198,1730301057685,-500.0,0.00034246,5]
[341042199,1730301057697,-500.0,0.00034246,5]
[341042200,1730301057706,-500.0,0.00034246,5]
[341042201,1730301057716,-500.0,0.00034246,5]
[341042202,1730301057726,-636.4,0.00034246,5]
[341042203,1730301057735,-500.0,0.00034246,5]
[341042204,1730301057745,-1397.76,0.00034246,5]
[341042205,1730301057755,-540.06,0.00034246,5]
[341042206,1730301057764,-500.0,0.00034246,5]
[341042207,1730301057774,-601.3,0.00034246,5]
[341042208,1730301057783,-701.17,0.00034246,5]
[341042209,1730301057793,-1140.97,0.00034246,5]
[341042210,1730301057802,-724.57,0.00034246,5]
[341042211,1730301057812,-1327.32,0.00034246,5]
[341042212,1730301057821,-500.0,0.00034246,5]
[341042213,1730301057831,-500.0,0.00034246,5]
[341042214,1730301057840,-794.59,0.00034246,5]
[341042215,1730301057850,-500.0,0.00034246,5]
[341042216,1730301057860,-650.16,0.00034246,5]
[341042217,1730301057870,-508.69,0.00034246,5]
[341042218,1730301057879,-553.9,0.00034246,5]
[341042219,1730301057889,-500.0,0.00034246,5]
[341042220,1730301057898,-979.14,0.00034246,5]
[341042221,1730301057908,-604.38,0.00034246,30]
[341042222,1730301057917,-230.54098201,0.00034246,5]
[341042223,1730301057928,-500.0,0.00034246,5]
[341042224,1730301057938,-1224.33,0.00034246,5]
[341042225,1730301057949,-500.0,0.00034246,5]
[341042226,1730301057959,-500.0,0.00034246,5]
[341042227,1730301057968,-500.0,0.00034246,5]
[341042228,1730301057977,-902.67,0.00034246,5]
[341042229,1730301057987,-500.0,0.00034246,5]
[341042230,1730301057996,-500.0,0.00034246,5]
[341042231,1730301058005,-500.0,0.00034246,5]
[341042232,1730301058014,-778.22,0.00034246,5]
[341042233,1730301058024,-500.0,0.00034246,5]
[341042234,1730301058033,-500.0,0.00034246,5]
[341042235,1730301058042,-500.0,0.00034246,5]
[341042236,1730301058052,-500.0,0.00034246,5]
[341042237,1730301058062,-500.0,0.00034246,5]
[341042238,1730301058071,-500.0,0.00034246,5]
[341042239,1730301058080,-500.0,0.00034246,5]
[341042240,1730301058089,-1335.04,0.00034246,5]
[341042241,1730301058099,-568.86616247,0.00034246,5]
[341042242,1730301058108,-546.12,0.00034246,5]
[341042243,1730301058118,-500.0,0.00034246,5]
[341042244,1730301058128,-813.76,0.00034246,5]
[341042245,1730301058138,-500.0,0.00034246,5]
[341042246,1730301058149,-500.0,0.00034246,5]
[341042247,1730301058160,-581.37,0.00034246,5]
[341042248,1730301058170,-601.11,0.00034246,5]
[341042249,1730301058179,-500.0,0.00034246,5]
[341042250,1730301058189,-500.0,0.00034246,5]
[341042251,1730301058199,-500.0,0.00034246,5]
[341042252,1730301058210,-500.0,0.00034246,5]
[341042253,1730301058220,-500.0,0.00034246,5]
[341042254,1730301058231,-500.0,0.00034246,5]
[341042255,1730301058241,-500.0,0.00034246,5]
[341042256,1730301058250,-3900.02,0.00034246,5]
[341042257,1730301058260,-500.0,0.00034246,5]
[341042258,1730301058270,-500.0,0.00034246,5]
[341042259,1730301058279,-500.0,0.00034246,5]
[341042260,1730301058288,-3956.8,0.00034246,5]
[341042261,1730301058300,-1033.49,0.00034246,5]
[341042262,1730301058310,-2561.17,0.00034246,5]
[341042263,1730301058320,-5020.91,0.00034246,5]
[341042264,1730301058329,-1504.38,0.00034246,5]
[341042265,1730301058339,-500.0,0.00034246,5]
[341042266,1730301058349,-1000.0,0.00034487,2]
[341042267,1730301058358,-500.0,0.0003452,5]
[341042268,1730301058368,-500.0,0.0003452,5]
[341042269,1730301058378,-500.0,0.0003452,5]
[341042270,1730301058388,-500.0,0.0003452,5]
[341042271,1730301058397,-500.0,0.0003452,5]
[341042272,1730301058406,-1139.26,0.0003452,2]
[341042273,1730301058416,-600.73,0.0003452,5]
[341042274,1730301058426,-500.0,0.0003452,5]
[341042275,1730301058436,-879.74,0.0003452,5]
[341042276,1730301058449,-834.42,0.0003452,5]
[341042277,1730301058459,-500.0,0.0003452,5]
[341042278,1730301058469,-552.85051384,0.0003452,5]
[341042279,1730301058479,-500.0,0.0003452,5]
[341042280,1730301058489,-500.0,0.0003452,5]
[341042281,1730301058499,-500.0,0.0003452,5]
[341042282,1730301058510,-500.0,0.0003452,5]
[341042283,1730301058519,-500.0,0.0003452,5]
[341042284,1730301058529,-500.0,0.0003452,5]
[341042285,1730301058538,-500.0,0.0003452,5]
[341042286,1730301058548,-541.52,0.0003452,5]
[341042287,1730301058558,-646.69,0.0003452,5]
[341042288,1730301058568,-500.0,0.0003452,5]
[341042289,1730301058578,-599.58,0.0003452,5]
[341042290,1730301058587,-739.01,0.0003452,5]
[341042291,1730301058596,-644.7,0.0003452,5]
[341042292,1730301058607,-500.0,0.0003452,5]
[341042293,1730301058617,-610.76,0.0003452,5]
[341042294,1730301058628,-500.0,0.0003452,5]
[341042295,1730301058638,-500.0,0.0003452,5]
[341042296,1730301058648,-500.0,0.0003452,5]
[341042297,1730301058659,-500.0,0.0003452,5]
[341042298,1730301058668,-500.0,0.0003452,5]
[341042299,1730301058678,-500.0,0.0003452,5]
[341042300,1730301058688,-1213.36,0.0003452,5]
[341042301,1730301058699,-500.0,0.0003452,5]
[341042302,1730301058709,-500.0,0.0003452,5]
[341042303,1730301058718,-741.71,0.0003452,5]
[341042304,1730301058728,-500.0,0.0003452,5]
[341042305,1730301058738,-500.0,0.0003452,5]
[341042306,1730301058747,-500.0,0.0003452,5]
[341042307,1730301058757,-500.0,0.0003452,5]
[341042308,1730301058766,-791.34,0.0003452,5]
[341042309,1730301058776,-2165.19,0.0003452,5]
[341042310,1730301058787,-2507.94,0.0003452,5]
[341042311,1730301058796,-500.0,0.0003452,5]
[341042312,1730301058805,-500.0,0.0003452,5]
[341042313,1730301058815,-556.27,0.0003452,5]
[341042314,1730301058824,-500.0,0.0003452,5]
[341042315,1730301058833,-850.73,0.0003452,5]
[341042316,1730301058843,-500.0,0.0003452,5]
[341042317,1730301058853,-500.0,0.0003452,5]
[341042318,1730301058863,-500.0,0.0003452,5]
[341042319,1730301058872,-500.0,0.0003452,5]
[341042320,1730301058882,-594.99,0.0003452,5]
[341042321,1730301058892,-500.0,0.0003452,5]
[341042322,1730301058901,-500.0,0.0003452,5]
[341042323,1730301058911,-500.0,0.0003452,5]
[341042324,1730301058923,-638.53,0.0003452,5]
[341042325,1730301058934,-765.24,0.0003452,5]
[341042326,1730301058945,-500.0,0.0003452,5]
[341042327,1730301058955,-500.0,0.0003452,5]
[341042328,1730301058964,-500.0,0.0003452,5]
[341042329,1730301058974,-500.0,0.0003452,5]
[341042330,1730301058984,-500.0,0.0003452,5]
[341042331,1730301058993,-726.09,0.0003452,5]
[341042332,1730301059002,-872.19,0.0003452,5]
[341042333,1730301059012,-1312.35,0.0003452,5]
[341042334,1730301059022,-500.0,0.0003452,5]
[341042335,1730301059031,-500.0,0.0003452,5]
[341042336,1730301059041,-500.0,0.0003452,5]
[341042337,1730301059050,-1481.81,0.0003452,5]
[341042338,1730301059060,-500.0,0.0003452,5]
[341042339,1730301059069,-500.0,0.0003452,5]
[341042340,1730301059079,-500.0,0.0003452,5]
[341042341,1730301059088,-662.44,0.0003452,5]
[341042342,1730301059097,-182.88536801,0.0003452,5]
[341042343,1730301059107,-500.0,0.0003452,5]
[341042344,1730301059116,-500.0,0.0003452,5]
[341042345,1730301059126,-646.17,0.0003452,5]
[341042346,1730301059135,-500.0,0.0003452,5]
[341042347,1730301059145,-500.0,0.0003452,5]
[341042348,1730301059155,-679.04,0.0003452,5]
[341042349,1730301059164,-500.0,0.0003452,5]
[341042350,1730301059173,-925.77,0.0003452,5]
[341042351,1730301059183,-500.0,0.0003452,5]
[341042352,1730301059193,-500.0,0.0003452,5]
[341042353,1730301059203,-854.36,0.0003452,5]
[341042354,1730301059217,-500.0,0.0003452,5]
[341042355,1730301059227,-524.7,0.0003452,5]
[341042356,1730301059236,-1022.86,0.0003452,5]
[341042357,1730301059245,-725.7,0.0003452,5]
[341042358,1730301059256,-500.0,0.0003452,5]
[341042359,1730301059265,-500.0,0.0003452,5]
[341042360,1730301059275,-500.0,0.0003452,5]
[341042361,1730301059285,-1018.14,0.0003452,5]
[341042362,1730301059296,-823.86,0.0003452,5]
[341042363,1730301059306,-500.0,0.0003452,5]
[341042364,1730301059317,-1098.19,0.0003452,5]
[341042365,1730301059326,-574.74,0.0003452,5]
[341042366,1730301059336,-500.0,0.0003452,5]
[341042367,1730301059346,-500.0,0.0003452,5]
[341042368,1730301059355,-500.0,0.0003452,5]
[341042369,1730301059365,-500.0,0.0003452,5]
[341042370,1730301059375,-500.0,0.0003452,5]
[341042371,1730301059385,-500.0,0.0003452,5]
[341042372,1730301059395,-546.7,0.0003452,5]
[341042373,1730301059405,-500.0,0.0003452,5]
[341042374,1730301059415,-500.0,0.0003452,5]
[341042375,1730301059424,-500.0,0.0003452,5]
[341042376,1730301059434,-500.0,0.0003452,5]
[341042377,1730301059448,-636.4,0.0003452,5]
[341042378,1730301059464,-500.0,0.0003452,5]
[341042379,1730301059475,-1397.76,0.0003452,5]
[341042380,1730301059485,-540.06,0.0003452,5]
[341042381,1730301059496,-500.0,0.0003452,5]
[341042382,1730301059505,-601.3,0.0003452,5]
[341042383,1730301059515,-701.17,0.0003452,5]
[341042384,1730301059525,-1140.97,0.0003452,5]
[341042385,1730301059534,-724.57,0.0003452,5]
[341042386,1730301059544,-1327.32,0.0003452,5]
[341042387,1730301059554,-500.0,0.0003452,5]
[341042388,1730301059564,-500.0,0.0003452,5]
[341042389,1730301059573,-794.59,0.0003452,5]
[341042390,1730301059583,-500.0,0.0003452,5]
[341042391,1730301059592,-650.16,0.0003452,5]
[341042392,1730301059602,-508.69,0.0003452,5]
[341042393,1730301059612,-553.9,0.0003452,5]
[341042394,1730301059622,-500.0,0.0003452,5]
[341042395,1730301059633,-979.14,0.0003452,5]
[341042396,1730301059642,-604.38,0.0003452,30]
[341042397,1730301059653,-500.0,0.0003452,5]
[341042398,1730301059705,-1224.33,0.0003452,5]
[341042399,1730301059715,-500.0,0.0003452,5]
[341042400,1730301059724,-500.0,0.0003452,5]
[341042401,1730301059734,-500.0,0.0003452,5]
[341042402,1730301059743,-902.67,0.0003452,5]
[341042403,1730301059752,-500.0,0.0003452,5]
[341042404,1730301059762,-451.84563981,0.0003452,5]
[341042405,1730301059771,-500.0,0.0003452,5]
[341042406,1730301059780,-778.22,0.0003452,5]
[341042407,1730301059789,-500.0,0.0003452,5]
[341042408,1730301059799,-500.0,0.0003452,5]
[341042409,1730301059807,-500.0,0.0003452,5]
[341042410,1730301059817,-500.0,0.0003452,5]
[341042411,1730301059826,-500.0,0.0003452,5]
[341042412,1730301059836,-500.0,0.0003452,5]
[341042413,1730301059845,-500.0,0.0003452,5]
[341042414,1730301059854,-1335.04,0.0003452,5]
[341042415,1730301059864,-546.12,0.0003452,5]
[341042416,1730301059874,-500.0,0.0003452,5]
[341042417,1730301059884,-813.76,0.0003452,5]
[341042418,1730301059896,-500.0,0.0003452,5]
[341042419,1730301059907,-581.37,0.0003452,5]
[341042420,1730301059917,-500.0,0.0003452,5]
[341042421,1730301059929,-601.11,0.0003452,5]
[341042422,1730301059939,-500.0,0.0003452,5]
[341042423,1730301059952,-500.0,0.0003452,5]
[341042424,1730301059962,-500.0,0.0003452,5]
[341042425,1730301059972,-500.0,0.0003452,5]
[341042426,1730301059981,-500.0,0.0003452,5]
[341042427,1730301059990,-547.21880803,0.0003452,5]
[341042428,1730301059999,-557.73179158,0.0003452,5]
[341042429,1730301060009,-3900.02,0.0003452,5]
[341042430,1730301060019,-500.0,0.0003452,5]
[341042431,1730301060029,-500.0,0.0003452,5]
[341042432,1730301060039,-271.34548947,0.0003452,5]
[341042433,1730301060048,-3956.8,0.0003452,5]
[341042434,1730301060058,-1033.49,0.0003452,5]
[341042435,1730301060067,-2561.17,0.0003452,5]
[341042436,1730301060077,-5020.91,0.0003452,5]
[341042437,1730301060087,-1504.38,0.0003452,5]
[341042438,1730301060096,-500.0,0.0003452,5]
[341042439,1730301060106,-222.82,0.00034521,2]
[341042440,1730301060115,-155.32,0.00034521,2]
[341042441,1730301060125,-155.57,0.00034521,2]
[341042442,1730301060135,-155.03,0.00034521,2]
[341042443,1730301060145,-360.82,0.00034521,2]
[341042444,1730301060154,-150.0,0.00034521,2]
[341042445,1730301060165,-150.0,0.00034521,2]
[341042446,1730301060175,-360.82,0.00034521,2]
[341042447,1730301060184,-150.0,0.00034521,2]
[341042448,1730301060194,-360.82,0.00034521,2]
[341042449,1730301060203,-150.0,0.00034521,2]
[341042450,1730301060213,-500.0,0.00034657,14]
[341042451,1730301060226,-500.0,0.00034657,14]
[341042452,1730301060236,-500.0,0.00034657,14]
[341042453,1730301060245,-649.0,0.00034657,14]
[341042454,1730301060255,-150.0,0.00034661,2]
[341042455,1730301060265,-150.0,0.00034676,2]
[341042456,1730301060274,-150.0,0.00034682,2]
[341042457,1730301060284,-150.0,0.00034683,2]
[341042458,1730301060296,-150.0,0.00034684,2]
[341042459,1730301060305,-150.0,0.00034691,2]
[341042460,1730301060315,-150.0,0.00034692,2]
[341042461,1730301060325,-150.0,0.00034697,2]
[341042462,1730301060335,-150.0,0.00034699,2]
[341042463,1730301060346,-150.0,0.00034705,2]
[341042464,1730301060356,-150.0,0.00034706,2]
[341042465,1730301060366,-277.58059227,0.0003471,2]
[341042466,1730301060376,-150.0,0.00034733,2]
[341042467,1730301060388,-256.20505689,0.00034748,2]
[341042468,1730301060398,-150.0,0.00034757,2]
[341042469,1730301060408,-150.0,0.00034758,2]
[341042470,1730301060418,-150.0,0.00034762,2]
[341042471,1730301060428,-150.0,0.00034779,2]
[341042472,1730301060438,-150.0,0.00034785,2]
[341042473,1730301060451,-150.0,0.00034785,2]
[341042474,1730301060460,-150.0,0.0003479,2]
[341042475,1730301060470,-150.0,0.00034793,2]
[341042476,1730301060480,-500.0,0.00034794,5]
[341042477,1730301060489,-500.0,0.00034794,5]
[341042478,1730301060499,-500.0,0.00034794,5]
[341042479,1730301060508,-500.0,0.00034794,5]
[341042480,1730301060518,-500.0,0.00034794,5]
[341042481,1730301060527,-1139.26,0.00034794,2]
[341042482,1730301060537,-600.73,0.00034794,5]
[341042483,1730301060546,-500.0,0.00034794,5]
[341042484,1730301060556,-879.74,0.00034794,5]
[341042485,1730301060565,-834.42,0.00034794,5]
[341042486,1730301060575,-500.0,0.00034794,5]
[341042487,1730301060585,-500.0,0.00034794,5]
[341042488,1730301060594,-500.0,0.00034794,5]
[341042489,1730301060604,-500.0,0.00034794,5]
[341042490,1730301060614,-500.0,0.00034794,5]
[341042491,1730301060623,-500.0,0.00034794,5]
[341042492,1730301060633,-500.0,0.00034794,5]
[341042493,1730301060642,-500.0,0.00034794,5]
[341042494,1730301060651,-541.52,0.00034794,5]
[341042495,1730301060661,-646.69,0.00034794,5]
[341042496,1730301060671,-489.33578744,0.00034794,5]
[341042497,1730301060681,-599.58,0.00034794,5]
[341042498,1730301060693,-739.01,0.00034794,5]
[341042499,1730301060703,-644.7,0.00034794,5]
[341042500,1730301060712,-500.0,0.00034794,5]
[341042501,1730301060722,-610.76,0.00034794,5]
[341042502,1730301060731,-500.0,0.00034794,5]
[341042503,1730301060740,-500.0,0.00034794,5]
[341042504,1730301060750,-500.0,0.00034794,5]
[341042505,1730301060759,-500.0,0.00034794,5]
[341042506,1730301060769,-517.53182533,0.00034794,5]
[341042507,1730301060780,-500.0,0.00034794,5]
[341042508,1730301060789,-1213.36,0.00034794,5]
[341042509,1730301060799,-360.17554882,0.00034794,5]
[341042510,1730301060808,-500.0,0.00034794,5]
[341042511,1730301060818,-741.71,0.00034794,5]
[341042512,1730301060827,-500.0,0.00034794,5]
[341042513,1730301060837,-500.0,0.00034794,5]
[341042514,1730301060847,-500.0,0.00034794,5]
[341042515,1730301060856,-500.0,0.00034794,5]
[341042516,1730301060865,-791.34,0.00034794,5]
[341042517,1730301060874,-2165.19,0.00034794,5]
[341042518,1730301060883,-2507.94,0.00034794,5]
[341042519,1730301060893,-500.0,0.00034794,5]
[341042520,1730301060903,-500.0,0.00034794,5]
[341042521,1730301060912,-556.27,0.00034794,5]
[341042522,1730301060921,-500.0,0.00034794,5]
[341042523,1730301060930,-850.73,0.00034794,5]
[341042524,1730301060939,-500.0,0.00034794,5]
[341042525,1730301060950,-500.0,0.00034794,5]
[341042526,1730301060960,-500.0,0.00034794,5]
[341042527,1730301060969,-500.0,0.00034794,5]
[341042528,1730301060978,-594.99,0.00034794,5]
[341042529,1730301060988,-512.90256763,0.00034794,5]
[341042530,1730301060997,-500.0,0.00034794,5]
[341042531,1730301061006,-500.0,0.00034794,5]
[341042532,1730301061015,-638.53,0.00034794,5]
[341042533,1730301061025,-765.24,0.00034794,5]
[341042534,1730301061034,-500.0,0.00034794,5]
[341042535,1730301061045,-500.0,0.00034794,5]
[341042536,1730301061054,-500.0,0.00034794,5]
[341042537,1730301061063,-500.0,0.00034794,5]
[341042538,1730301061073,-500.0,0.00034794,5]
[341042539,1730301061081,-872.19,0.00034794,5]
[341042540,1730301061092,-726.09,0.00034794,5]
[341042541,1730301061101,-1312.35,0.00034794,5]
[341042542,1730301061112,-500.0,0.00034794,5]
[341042543,1730301061123,-500.0,0.00034794,5]
[341042544,1730301061133,-500.0,0.00034794,5]
[341042545,1730301061142,-1481.81,0.00034794,5]
[341042546,1730301061152,-500.0,0.00034794,5]
[341042547,1730301061163,-500.0,0.00034794,5]
[341042548,1730301061172,-500.0,0.00034794,5]
[341042549,1730301061182,-662.44,0.00034794,5]
[341042550,1730301061194,-500.0,0.00034794,5]
[341042551,1730301061204,-500.0,0.00034794,5]
[341042552,1730301061219,-646.17,0.00034794,5]
[341042553,1730301061228,-514.74012995,0.00034794,5]
[341042554,1730301061238,-500.0,0.00034794,5]
[341042555,1730301061247,-679.04,0.00034794,5]
[341042556,1730301061259,-500.0,0.00034794,5]
[341042557,1730301061268,-925.77,0.00034794,5]
[341042558,1730301061280,-500.0,0.00034794,5]
[341042559,1730301061289,-500.0,0.00034794,5]
[341042560,1730301061299,-854.36,0.00034794,5]
[341042561,1730301061309,-500.0,0.00034794,5]
[341042562,1730301061318,-524.7,0.00034794,5]
[341042563,1730301061328,-1022.86,0.00034794,5]
[341042564,1730301061340,-725.7,0.00034794,5]
[341042565,1730301061350,-500.0,0.00034794,5]
[341042566,1730301061359,-500.0,0.00034794,5]
[341042567,1730301061369,-500.0,0.00034794,5]
[341042568,1730301061379,-1018.14,0.00034794,5]
[341042569,1730301061389,-823.86,0.00034794,5]
[341042570,1730301061398,-500.0,0.00034794,5]